[Event "Live Chess"]
[Site "Chess.com"]
[Date "2024.06.01"]
[Round "-"]
[White "CarmelJane"]
[Black "KeithArkell"]
[Result "0-1"]
[WhiteElo "2089"]
[BlackElo "2489"]
[TimeControl "300"]
[EndTime "12:20:12 PDT"]
[Termination "KeithArkell won on time"]

1. e4 {[%clk 0:04:57.4]} 1... c6 {[%clk 0:04:59.1]} 2. d4 {[%clk 0:04:55.5]}
2... d5 {[%clk 0:04:58.5]} 3. e5 {[%clk 0:04:44.7]} 3... c5 {[%clk 0:04:52.6]}
4. dxc5 {[%clk 0:04:44.6]} 4... Nc6 {[%clk 0:04:51.7]} 5. Nf3 {[%clk 0:04:33.2]}
5... Bg4 {[%clk 0:04:50.6]} 6. Bb5 {[%clk 0:04:12.7]} 6... Qa5+ {[%clk
0:04:48.2]} 7. Nc3 {[%clk 0:04:11.4]} 7... Bxf3 {[%clk 0:04:47.6]} 8. Qxf3
{[%clk 0:04:09.5]} 8... e6 {[%clk 0:04:47.2]} 9. O-O {[%clk 0:03:56.7]} 9...
Bxc5 {[%clk 0:04:45.4]} 10. a3 {[%clk 0:03:45.1]} 10... Ne7 {[%clk 0:04:39.6]}
11. Bg5 {[%clk 0:03:21.1]} 11... Qc7 {[%clk 0:04:37.3]} 12. Bxe7 {[%clk
0:02:45.6]} 12... Qxe7 {[%clk 0:04:31]} 13. Bxc6+ {[%clk 0:02:43.1]} 13... bxc6
{[%clk 0:04:29.8]} 14. Ne2 {[%clk 0:02:38.1]} 14... Qg5 {[%clk 0:04:27.9]} 15.
Qc3 {[%clk 0:02:29.3]} 15... O-O {[%clk 0:04:17.6]} 16. Qxc5 {[%clk 0:02:27]}
16... Qxe5 {[%clk 0:04:16.7]} 17. Rfe1 {[%clk 0:02:10.7]} 17... Qxb2 {[%clk
0:04:13.4]} 18. Rab1 {[%clk 0:02:06.8]} 18... Qf6 {[%clk 0:04:07.3]} 19. Rb3
{[%clk 0:02:00.5]} 19... h5 {[%clk 0:04:06.1]} 20. Rg3 {[%clk 0:01:48]} 20... h4
{[%clk 0:04:04.1]} 21. Rf3 {[%clk 0:01:37.6]} 21... Qg5 {[%clk 0:04:00]} 22. Qe3
{[%clk 0:01:35]} 22... Qxe3 {[%clk 0:03:58.8]} 23. Rxe3 {[%clk 0:01:34.6]} 23...
Rab8 {[%clk 0:03:52.7]} 24. Rb3 {[%clk 0:01:26.4]} 24... Rb6 {[%clk 0:03:48.6]}
25. Nd4 {[%clk 0:01:23.8]} 25... c5 {[%clk 0:03:46.4]} 26. Nf3 {[%clk
0:01:22.3]} 26... h3 {[%clk 0:03:44.6]} 27. gxh3 {[%clk 0:01:20.9]} 27... c4
{[%clk 0:03:42.3]} 28. Rxb6 {[%clk 0:01:19]} 28... axb6 {[%clk 0:03:41.5]} 29.
Ne5 {[%clk 0:01:17.9]} 29... Ra8 {[%clk 0:03:39.9]} 30. Rb1 {[%clk 0:01:16.5]}
30... b5 {[%clk 0:03:39.4]} 31. Rxb5 {[%clk 0:01:09]} 31... f6 {[%clk
0:03:37.3]} 32. Nf3 {[%clk 0:00:55.8]} 32... Rxa3 {[%clk 0:03:35.5]} 33. Nd4
{[%clk 0:00:55.3]} 33... e5 {[%clk 0:03:30.7]} 34. Nf5 {[%clk 0:00:52.5]} 34...
Kf7 {[%clk 0:03:24.1]} 35. Ne3 {[%clk 0:00:47.1]} 35... d4 {[%clk 0:03:19.5]}
36. Nxc4 {[%clk 0:00:45.9]} 36... Rc3 {[%clk 0:03:18.8]} 37. Nd6+ {[%clk
0:00:44.7]} 37... Ke6 {[%clk 0:03:17.3]} 38. Ne8 {[%clk 0:00:43.7]} 38... Kd7
{[%clk 0:02:50.7]} 39. Nxg7 {[%clk 0:00:41.7]} 39... Rxc2 {[%clk 0:02:50.2]} 40.
Nf5 {[%clk 0:00:37.1]} 40... Ke6 {[%clk 0:02:49.4]} 41. Ng3 {[%clk 0:00:36.2]}
41... d3 {[%clk 0:02:47.8]} 42. Nf1 {[%clk 0:00:29.3]} 42... d2 {[%clk
0:02:42.8]} 43. Nxd2 {[%clk 0:00:27.8]} 43... Rxd2 {[%clk 0:02:42.1]} 44. Rb3
{[%clk 0:00:27.4]} 44... Kf5 {[%clk 0:02:35.3]} 45. Kg2 {[%clk 0:00:27.3]} 45...
Kg5 {[%clk 0:02:31.5]} 46. Rg3+ {[%clk 0:00:25.5]} 46... Kh5 {[%clk 0:02:28.8]}
47. Rf3 {[%clk 0:00:24.9]} 47... Kg6 {[%clk 0:02:27.5]} 48. h4 {[%clk 0:00:24]}
48... Rd4 {[%clk 0:02:24.8]} 49. Kg3 {[%clk 0:00:23.4]} 49... f5 {[%clk
0:02:23.4]} 50. Ra3 {[%clk 0:00:21.9]} 50... Rg4+ {[%clk 0:02:21.9]} 51. Kh3
{[%clk 0:00:20.8]} 51... Rf4 {[%clk 0:02:20.3]} 52. Ra6+ {[%clk 0:00:20.3]}
52... Kh5 {[%clk 0:02:19.5]} 53. Ra5 {[%clk 0:00:17.6]} 53... Rxh4+ {[%clk
0:02:18.7]} 54. Kg2 {[%clk 0:00:16.8]} 54... Rf4 {[%clk 0:02:16.1]} 55. Kg3
{[%clk 0:00:16]} 55... Kg5 {[%clk 0:02:15.2]} 56. Rxe5 {[%clk 0:00:14.1]} 56...
Rg4+ {[%clk 0:02:07.3]} 57. Kf3 {[%clk 0:00:12.9]} 57... Rh4 {[%clk 0:02:06]}
58. Kg3 {[%clk 0:00:11.3]} 58... Rg4+ {[%clk 0:02:04.9]} 59. Kf3 {[%clk
0:00:09.4]} 59... Ra4 {[%clk 0:02:04.8]} 60. Kg3 {[%clk 0:00:08.3]} 60... Ra1
{[%clk 0:02:00.4]} 61. Re8 {[%clk 0:00:06.8]} 61... Rg1+ {[%clk 0:01:58.8]} 62.
Kf3 {[%clk 0:00:06.5]} 62... Kf6 {[%clk 0:01:56.4]} 63. Rf8+ {[%clk 0:00:06]}
63... Ke6 {[%clk 0:01:55.4]} 64. Rh8 {[%clk 0:00:05.9]} 64... Rg6 {[%clk
0:01:53.3]} 65. h4 {[%clk 0:00:05.8]} 65... Rg4 {[%clk 0:01:51.9]} 66. h5 {[%clk
0:00:05.1]} 66... Rh4 {[%clk 0:01:51.1]} 67. h6 {[%clk 0:00:04.7]} 67... Kf6
{[%clk 0:01:50]} 68. h7 {[%clk 0:00:04.3]} 68... Kg7 {[%clk 0:01:49.4]} 69. Rd8
{[%clk 0:00:03.8]} 69... Kxh7 {[%clk 0:01:47.8]} 70. Rd5 {[%clk 0:00:02.7]}
70... Kg6 {[%clk 0:01:46.7]} 71. Kg3 {[%clk 0:00:01.5]} 71... Rg4+ {[%clk
0:01:45.7]} 0-1

[Event "Live Chess"]
[Site "Chess.com"]
[Date "2024.06.01"]
[Round "-"]
[White "Tushinskiy"]
[Black "Colm_Buckley"]
[Result "1-0"]
[WhiteElo "2245"]
[BlackElo "1855"]
[TimeControl "300"]
[EndTime "12:20:18 PDT"]
[Termination "Tushinskiy won by resignation"]

1. d4 {[%clk 0:04:57.3]} 1... e6 {[%clk 0:04:59]} 2. c3 {[%clk 0:04:57.2]} 2...
Nf6 {[%clk 0:04:54.4]} 3. Nf3 {[%clk 0:04:57.1]} 3... c5 {[%clk 0:04:53.8]} 4.
Bf4 {[%clk 0:04:57]} 4... d5 {[%clk 0:04:51.9]} 5. Bg3 {[%clk 0:04:56.9]} 5...
Nc6 {[%clk 0:04:51.1]} 6. e3 {[%clk 0:04:56.1]} 6... Bd6 {[%clk 0:04:50.1]} 7.
Bd3 {[%clk 0:04:55.2]} 7... Bxg3 {[%clk 0:04:49.1]} 8. hxg3 {[%clk 0:04:54.1]}
8... cxd4 {[%clk 0:04:48.3]} 9. exd4 {[%clk 0:04:53.1]} 9... b6 {[%clk 0:04:46]}
10. Nbd2 {[%clk 0:04:52.5]} 10... a5 {[%clk 0:04:44.4]} 11. Qe2 {[%clk
0:04:51.9]} 11... Qc7 {[%clk 0:04:41.6]} 12. Ne5 {[%clk 0:04:49.9]} 12... h6
{[%clk 0:04:32.3]} 13. f4 {[%clk 0:04:46.9]} 13... Nxe5 {[%clk 0:04:22]} 14.
fxe5 {[%clk 0:04:46.6]} 14... Nd7 {[%clk 0:04:17.7]} 15. g4 {[%clk 0:04:46]}
15... g6 {[%clk 0:04:08.9]} 16. g5 {[%clk 0:04:42.9]} 16... h5 {[%clk
0:04:06.2]} 17. g4 {[%clk 0:04:41.4]} 17... Nf8 {[%clk 0:03:59.1]} 18. O-O-O
{[%clk 0:04:38.5]} 18... Qe7 {[%clk 0:03:53.9]} 19. gxh5 {[%clk 0:04:36.6]}
19... Qxg5 {[%clk 0:03:48.8]} 20. Rdg1 {[%clk 0:04:34.7]} 20... Qh6 {[%clk
0:03:46.2]} 21. hxg6 {[%clk 0:04:31.8]} 21... Qxh1 {[%clk 0:03:44.5]} 22. gxf7+
{[%clk 0:04:31]} 22... Kxf7 {[%clk 0:03:42.1]} 23. Qf1+ {[%clk 0:04:30.3]} 1-0

[Event "Live Chess"]
[Site "Chess.com"]
[Date "2024.06.01"]
[Round "-"]
[White "blunderabit"]
[Black "Crowded_House"]
[Result "1-0"]
[WhiteElo "1820"]
[BlackElo "1737"]
[TimeControl "300"]
[EndTime "12:20:28 PDT"]
[Termination "blunderabit won by checkmate"]

1. e4 {[%clk 0:04:48.7]} 1... e6 {[%clk 0:04:59.9]} 2. d4 {[%clk 0:04:46.1]}
2... d5 {[%clk 0:04:59.1]} 3. Bd3 {[%clk 0:04:45.4]} 3... dxe4 {[%clk
0:04:57.3]} 4. Bxe4 {[%clk 0:04:44.6]} 4... Nf6 {[%clk 0:04:55.6]} 5. Bf3 {[%clk
0:04:43.6]} 5... Bd6 {[%clk 0:04:49.3]} 6. Ne2 {[%clk 0:04:42.8]} 6... O-O
{[%clk 0:04:47.8]} 7. Nbc3 {[%clk 0:04:36.4]} 7... Nbd7 {[%clk 0:04:45.6]} 8.
Nb5 {[%clk 0:04:33.7]} 8... Nb6 {[%clk 0:04:34.8]} 9. Nxd6 {[%clk 0:04:31.1]}
9... Qxd6 {[%clk 0:04:33.2]} 10. O-O {[%clk 0:04:29.1]} 10... Rb8 {[%clk
0:04:31.5]} 11. Bf4 {[%clk 0:04:28.5]} 11... Qd7 {[%clk 0:04:25.7]} 12. c3
{[%clk 0:04:25.8]} 12... Nbd5 {[%clk 0:04:24]} 13. Be5 {[%clk 0:04:21.9]} 13...
Qe7 {[%clk 0:04:12.7]} 14. c4 {[%clk 0:04:10.6]} 14... Nb6 {[%clk 0:04:05.7]}
15. b3 {[%clk 0:04:07.1]} 15... Nbd7 {[%clk 0:04:03.4]} 16. Bxc7 {[%clk
0:04:04.2]} 16... Ra8 {[%clk 0:04:01.5]} 17. Bg3 {[%clk 0:03:45.1]} 17... Nb6
{[%clk 0:03:59.6]} 18. Qc2 {[%clk 0:03:33.5]} 18... Rd8 {[%clk 0:03:53.2]} 19.
Rad1 {[%clk 0:03:31.6]} 19... Nfd7 {[%clk 0:03:47.6]} 20. Rfe1 {[%clk
0:03:28.9]} 20... Qb4 {[%clk 0:03:35.8]} 21. Nc3 {[%clk 0:03:17.5]} 21... Nf6
{[%clk 0:03:31.7]} 22. Ne4 {[%clk 0:02:58.5]} 22... Nxe4 {[%clk 0:03:25.5]} 23.
Bxe4 {[%clk 0:02:57.1]} 23... h6 {[%clk 0:03:20]} 24. Re3 {[%clk 0:02:47.1]}
24... a6 {[%clk 0:03:10.7]} 25. a3 {[%clk 0:02:18.3]} 25... Qf8 {[%clk
0:03:03.5]} 26. b4 {[%clk 0:02:15.6]} 26... Nd7 {[%clk 0:03:01.1]} 27. c5 {[%clk
0:02:12.5]} 27... Nf6 {[%clk 0:02:59.1]} 28. Bd6 {[%clk 0:02:03.9]} 28... Qe8
{[%clk 0:02:52]} 29. Bf3 {[%clk 0:02:00.6]} 29... Nd5 {[%clk 0:02:43.8]} 30.
Bxd5 {[%clk 0:01:58.3]} 30... Qd7 {[%clk 0:02:38]} 31. Be4 {[%clk 0:01:55.6]}
31... f5 {[%clk 0:02:34.2]} 32. Bf3 {[%clk 0:01:40.2]} 32... Re8 {[%clk
0:02:26.5]} 33. Rde1 {[%clk 0:01:34.1]} 33... Qf7 {[%clk 0:02:23.2]} 34. d5
{[%clk 0:01:21.4]} 34... e5 {[%clk 0:02:10.4]} 35. Bxe5 {[%clk 0:01:14.2]} 35...
Bd7 {[%clk 0:02:06.1]} 36. d6 {[%clk 0:01:11.2]} 36... Rab8 {[%clk 0:01:53.6]}
37. Qd2 {[%clk 0:01:08.2]} 37... Re6 {[%clk 0:01:47.2]} 38. Bd5 {[%clk
0:01:05.1]} 38... Rbe8 {[%clk 0:01:45.1]} 39. Bb2 {[%clk 0:00:59.6]} 39... Rxe3
{[%clk 0:01:42.8]} 40. Bxf7+ {[%clk 0:00:57.2]} 40... Kf8 {[%clk 0:01:38.7]} 41.
Rxe3 {[%clk 0:00:55.5]} 41... Rxe3 {[%clk 0:01:37.8]} 42. Qxe3 {[%clk
0:00:51.5]} 42... Kxf7 {[%clk 0:01:36.4]} 43. Qe7+ {[%clk 0:00:49.3]} 43... Kg6
{[%clk 0:01:36.3]} 44. Qxg7+ {[%clk 0:00:46.9]} 44... Kh5 {[%clk 0:01:34.5]} 45.
Qxd7 {[%clk 0:00:43.6]} 45... Kg5 {[%clk 0:01:32.4]} 46. Qg7+ {[%clk 0:00:41.3]}
46... Kf4 {[%clk 0:01:31.1]} 47. d7 {[%clk 0:00:37.4]} 47... Ke4 {[%clk
0:01:28.9]} 48. Qe5+ {[%clk 0:00:34.6]} 48... Kd3 {[%clk 0:01:27.3]} 49. d8=Q+
{[%clk 0:00:33.9]} 49... Kc4 {[%clk 0:01:26.8]} 50. Qdd5+ {[%clk 0:00:28.8]}
50... Kb5 {[%clk 0:01:26.7]} 51. Qxb7+ {[%clk 0:00:27.3]} 51... Ka4 {[%clk
0:01:25.9]} 52. Qc3 {[%clk 0:00:23.9]} 52... a5 {[%clk 0:01:23]} 53. Qc2# {[%clk
0:00:21.9]} 1-0

[Event "Live Chess"]
[Site "Chess.com"]
[Date "2024.06.01"]
[Round "-"]
[White "MagnersCarlsberg2870"]
[Black "StoreySniper"]
[Result "0-1"]
[WhiteElo "1844"]
[BlackElo "2532"]
[TimeControl "300"]
[EndTime "12:20:29 PDT"]
[Termination "StoreySniper won by checkmate"]

1. d4 {[%clk 0:04:54.9]} 1... g6 {[%clk 0:04:59]} 2. h4 {[%clk 0:04:51.7]} 2...
Bg7 {[%clk 0:04:58]} 3. h5 {[%clk 0:04:50.4]} 3... c5 {[%clk 0:04:57.4]} 4. hxg6
{[%clk 0:04:49.1]} 4... hxg6 {[%clk 0:04:56.2]} 5. Rxh8 {[%clk 0:04:47.8]} 5...
Bxh8 {[%clk 0:04:55.5]} 6. c3 {[%clk 0:04:45.3]} 6... cxd4 {[%clk 0:04:53.2]} 7.
cxd4 {[%clk 0:04:43.6]} 7... Nc6 {[%clk 0:04:52.9]} 8. Nf3 {[%clk 0:04:42.2]}
8... Qa5+ {[%clk 0:04:50.3]} 9. Bd2 {[%clk 0:04:38.3]} 9... Qh5 {[%clk
0:04:49.8]} 10. Nc3 {[%clk 0:04:28.3]} 10... d5 {[%clk 0:04:48.8]} 11. Qb3
{[%clk 0:04:25.3]} 11... e6 {[%clk 0:04:40.1]} 12. e3 {[%clk 0:04:23.4]} 12...
Nge7 {[%clk 0:04:38]} 13. O-O-O {[%clk 0:04:22.3]} 13... Bf6 {[%clk 0:04:33.2]}
14. Nb5 {[%clk 0:04:17.9]} 14... Kf8 {[%clk 0:04:30.6]} 15. g4 {[%clk
0:03:59.6]} 15... Qxg4 {[%clk 0:04:25.2]} 16. Be2 {[%clk 0:03:55.9]} 16... Qg2
{[%clk 0:04:18.9]} 17. Nd6 {[%clk 0:03:38.6]} 17... Qxf2 {[%clk 0:04:06.3]} 18.
Re1 {[%clk 0:03:35.7]} 18... Qg3 {[%clk 0:03:43.6]} 19. Rg1 {[%clk 0:03:32.8]}
19... Qxd6 {[%clk 0:03:41.7]} 20. Ng5 {[%clk 0:03:21.5]} 20... Bxg5 {[%clk
0:03:37.7]} 21. Rxg5 {[%clk 0:03:20.1]} 21... Nf5 {[%clk 0:03:31.9]} 22. Bb5
{[%clk 0:03:15.3]} 22... Bd7 {[%clk 0:03:28.6]} 23. Bxc6 {[%clk 0:03:13.5]}
23... Qxc6+ {[%clk 0:03:27.5]} 24. Kb1 {[%clk 0:03:12.1]} 24... Rc8 {[%clk
0:03:21.1]} 25. Bb4+ {[%clk 0:02:40]} 25... Kg7 {[%clk 0:03:15.3]} 26. a3 {[%clk
0:02:32.6]} 26... Qc4 {[%clk 0:03:12.8]} 27. Qd1 {[%clk 0:02:26.7]} 27... Nxe3
{[%clk 0:03:08.1]} 28. Qh1 {[%clk 0:02:23]} 28... Qc2+ {[%clk 0:03:05.9]} 29.
Ka2 {[%clk 0:02:18.8]} 29... Nd1 {[%clk 0:02:57.7]} 30. Rg2 {[%clk 0:02:09]}
30... Qe4 {[%clk 0:02:51.2]} 31. Qh2 {[%clk 0:01:48.5]} 31... Ba4 {[%clk
0:02:37.1]} 32. Rg1 {[%clk 0:01:41.2]} 32... Rc1 {[%clk 0:02:27.9]} 33. Bf8+
{[%clk 0:01:18.8]} 33... Kg8 {[%clk 0:02:25.1]} 34. Rh1 {[%clk 0:00:54.9]} 34...
Qb1# {[%clk 0:02:17.4]} 0-1

[Event "Live Chess"]
[Site "Chess.com"]
[Date "2024.06.01"]
[Round "-"]
[White "wadsy27"]
[Black "Nazar-Makarchuk"]
[Result "1-0"]
[WhiteElo "2558"]
[BlackElo "1521"]
[TimeControl "300"]
[EndTime "12:20:49 PDT"]
[Termination "wadsy27 won by checkmate"]

1. d4 {[%clk 0:04:55.4]} 1... d5 {[%clk 0:04:59.2]} 2. Nf3 {[%clk 0:04:54.8]}
2... Nf6 {[%clk 0:04:58.5]} 3. Bf4 {[%clk 0:04:54.6]} 3... Bg4 {[%clk
0:04:57.7]} 4. Ne5 {[%clk 0:04:51.8]} 4... Nbd7 {[%clk 0:04:52.5]} 5. Nxg4
{[%clk 0:04:50.8]} 5... Nxg4 {[%clk 0:04:51.4]} 6. e4 {[%clk 0:04:50.5]} 6...
Ngf6 {[%clk 0:04:47.8]} 7. e5 {[%clk 0:04:50.2]} 7... Ne4 {[%clk 0:04:46.5]} 8.
f3 {[%clk 0:04:49.7]} 8... g5 {[%clk 0:04:34.5]} 9. Be3 {[%clk 0:04:47.5]} 9...
f6 {[%clk 0:02:47.4]} 10. fxe4 {[%clk 0:04:31.8]} 10... dxe4 {[%clk 0:02:44.7]}
11. Qh5# {[%clk 0:04:31]} 1-0

[Event "Live Chess"]
[Site "Chess.com"]
[Date "2024.06.01"]
[Round "-"]
[White "educatedlad"]
[Black "NAZRIZ1977"]
[Result "0-1"]
[WhiteElo "1761"]
[BlackElo "2129"]
[TimeControl "300"]
[EndTime "12:20:53 PDT"]
[Termination "NAZRIZ1977 won by resignation"]

1. d4 {[%clk 0:04:58.7]} 1... Nf6 {[%clk 0:04:58.8]} 2. Bg5 {[%clk 0:04:58]}
2... d5 {[%clk 0:04:56.9]} 3. e3 {[%clk 0:04:56.2]} 3... Nbd7 {[%clk 0:04:52.7]}
4. Nd2 {[%clk 0:04:53.9]} 4... c5 {[%clk 0:04:51.2]} 5. Ngf3 {[%clk 0:04:53.1]}
5... e6 {[%clk 0:04:49.9]} 6. Be2 {[%clk 0:04:51.7]} 6... Be7 {[%clk 0:04:49.2]}
7. O-O {[%clk 0:04:51]} 7... Ne4 {[%clk 0:04:46.2]} 8. Bxe7 {[%clk 0:04:48.1]}
8... Qxe7 {[%clk 0:04:45.3]} 9. Nxe4 {[%clk 0:04:47.5]} 9... dxe4 {[%clk
0:04:45.2]} 10. Nd2 {[%clk 0:04:47]} 10... f5 {[%clk 0:04:43.6]} 11. Bc4 {[%clk
0:04:41.6]} 11... Nb6 {[%clk 0:04:36.2]} 12. Bb5+ {[%clk 0:04:39.3]} 12... Bd7
{[%clk 0:04:34.6]} 13. Bxd7+ {[%clk 0:04:37.4]} 13... Nxd7 {[%clk 0:04:33.7]}
14. Nb3 {[%clk 0:04:34.6]} 14... c4 {[%clk 0:04:24.6]} 15. Nd2 {[%clk
0:04:32.9]} 15... Rc8 {[%clk 0:04:16.7]} 16. c3 {[%clk 0:04:31.3]} 16... O-O
{[%clk 0:04:14.1]} 17. Qe2 {[%clk 0:04:28.5]} 17... b5 {[%clk 0:04:05.4]} 18. f3
{[%clk 0:04:25.9]} 18... exf3 {[%clk 0:04:03.3]} 19. Nxf3 {[%clk 0:04:23.1]}
19... e5 {[%clk 0:04:02.3]} 20. Nxe5 {[%clk 0:04:19.1]} 20... Nxe5 {[%clk
0:04:01.4]} 21. dxe5 {[%clk 0:04:18.4]} 21... Qxe5 {[%clk 0:04:00.7]} 22. Rad1
{[%clk 0:04:17]} 22... f4 {[%clk 0:03:55]} 23. Rfe1 {[%clk 0:04:06.1]} 23...
Rce8 {[%clk 0:03:28.8]} 24. Kf2 {[%clk 0:03:52.5]} 24... fxe3+ {[%clk
0:03:24.2]} 25. Kg1 {[%clk 0:03:51.3]} 25... Rf7 {[%clk 0:02:53.2]} 26. Rf1
{[%clk 0:03:43.6]} 26... Rxf1+ {[%clk 0:02:47.7]} 27. Rxf1 {[%clk 0:03:43.5]}
27... h6 {[%clk 0:02:45.5]} 28. Rf3 {[%clk 0:03:26.6]} 28... Qe4 {[%clk
0:02:42.1]} 29. h3 {[%clk 0:03:20.5]} 29... Kh7 {[%clk 0:02:37.6]} 30. Rf7
{[%clk 0:03:14.8]} 30... Qd3 {[%clk 0:02:06]} 31. Qg4 {[%clk 0:03:07.4]} 31...
Qg6 {[%clk 0:02:04.6]} 32. Qxg6+ {[%clk 0:03:04.2]} 32... Kxg6 {[%clk
0:02:04.5]} 33. Rf1 {[%clk 0:02:59.8]} 33... Rd8 {[%clk 0:01:56.5]} 34. Re1
{[%clk 0:02:58.7]} 34... Rd3 {[%clk 0:01:51]} 35. Kf1 {[%clk 0:02:56.2]} 35...
Kf5 {[%clk 0:01:48.3]} 36. Ke2 {[%clk 0:02:55.4]} 36... Ke4 {[%clk 0:01:47.5]}
37. g4 {[%clk 0:02:50.8]} 37... Rd2+ {[%clk 0:01:46.3]} 38. Kf1 {[%clk
0:02:49.4]} 38... Rxb2 {[%clk 0:01:46.2]} 39. Re2 {[%clk 0:02:47.6]} 39... Rxe2
{[%clk 0:01:35]} 40. Kxe2 {[%clk 0:02:46.4]} 40... g5 {[%clk 0:01:34.9]} 41. a3
{[%clk 0:02:43.7]} 41... a5 {[%clk 0:01:33.7]} 42. Ke1 {[%clk 0:02:41.7]} 42...
Kd3 {[%clk 0:01:33]} 43. Kd1 {[%clk 0:02:40.1]} 0-1

[Event "Live Chess"]
[Site "Chess.com"]
[Date "2024.06.01"]
[Round "-"]
[White "MaximKovalenko83"]
[Black "Queensandpawns"]
[Result "1-0"]
[WhiteElo "2225"]
[BlackElo "2387"]
[TimeControl "300"]
[EndTime "12:21:04 PDT"]
[Termination "MaximKovalenko83 won by resignation"]

1. d4 {[%clk 0:04:54.3]} 1... e5 {[%clk 0:04:59.9]} 2. dxe5 {[%clk 0:04:52.8]}
2... Bc5 {[%clk 0:04:59]} 3. Nf3 {[%clk 0:04:51.2]} 3... d6 {[%clk 0:04:58.7]}
4. exd6 {[%clk 0:04:49.9]} 4... Ne7 {[%clk 0:04:58.6]} 5. Nc3 {[%clk 0:04:43]}
5... Bxd6 {[%clk 0:04:57.4]} 6. e4 {[%clk 0:04:41.6]} 6... O-O {[%clk
0:04:57.3]} 7. Bd3 {[%clk 0:04:39.8]} 7... Nbc6 {[%clk 0:04:55.8]} 8. O-O {[%clk
0:04:39.3]} 8... Bg4 {[%clk 0:04:55.4]} 9. h3 {[%clk 0:04:37.6]} 9... Bh5 {[%clk
0:04:54.5]} 10. Be3 {[%clk 0:04:30.8]} 10... Qd7 {[%clk 0:04:51.2]} 11. Be2
{[%clk 0:04:28.1]} 11... Rad8 {[%clk 0:04:36.7]} 12. Nd5 {[%clk 0:04:20.1]}
12... Nxd5 {[%clk 0:04:30.9]} 13. Qxd5 {[%clk 0:04:15.8]} 13... Bg6 {[%clk
0:04:29.6]} 14. Rad1 {[%clk 0:04:09.5]} 14... Rfe8 {[%clk 0:04:24.8]} 15. Bd3
{[%clk 0:04:01]} 15... Qe7 {[%clk 0:04:23.6]} 16. Bg5 {[%clk 0:03:56.8]} 16...
Qf8 {[%clk 0:03:54.1]} 17. Bxd8 {[%clk 0:03:52.3]} 17... Rxd8 {[%clk 0:03:54]}
18. Qg5 {[%clk 0:03:41.5]} 18... h6 {[%clk 0:03:50.7]} 19. Qh4 {[%clk 0:03:39]}
19... Re8 {[%clk 0:03:45.9]} 20. Rfe1 {[%clk 0:03:35.4]} 20... Be7 {[%clk
0:03:44.6]} 21. Qg3 {[%clk 0:03:33.8]} 21... Bc5 {[%clk 0:03:40]} 22. e5 {[%clk
0:03:28.1]} 22... Bxd3 {[%clk 0:03:36.4]} 23. cxd3 {[%clk 0:03:26.4]} 1-0

[Event "Live Chess"]
[Site "Chess.com"]
[Date "2024.06.01"]
[Round "-"]
[White "JanMur7"]
[Black "Brooms1989"]
[Result "1-0"]
[WhiteElo "2301"]
[BlackElo "1088"]
[TimeControl "300"]
[EndTime "12:21:11 PDT"]
[Termination "JanMur7 won by resignation"]

1. c4 {[%clk 0:04:39.3]} 1... Nf6 {[%clk 0:04:55.6]} 2. Nc3 {[%clk 0:04:37.5]}
2... g6 {[%clk 0:04:54.9]} 3. d4 {[%clk 0:04:36.6]} 3... Bg7 {[%clk 0:04:54.2]}
4. e4 {[%clk 0:04:36.2]} 4... d6 {[%clk 0:04:52.7]} 5. Bg5 {[%clk 0:04:35.8]}
5... O-O {[%clk 0:04:51]} 6. Be2 {[%clk 0:04:34.3]} 6... Nbd7 {[%clk 0:04:48.1]}
7. g4 {[%clk 0:04:30.3]} 7... e5 {[%clk 0:04:40]} 8. d5 {[%clk 0:04:28]} 8... a5
{[%clk 0:04:36.5]} 9. h4 {[%clk 0:04:23]} 9... Nc5 {[%clk 0:04:34.3]} 10. f3
{[%clk 0:04:19]} 10... h6 {[%clk 0:04:28.1]} 11. Be3 {[%clk 0:04:15.4]} 11... b6
{[%clk 0:04:19]} 12. h5 {[%clk 0:04:05.8]} 12... g5 {[%clk 0:04:14.4]} 13. Nh3
{[%clk 0:03:50.4]} 13... Bd7 {[%clk 0:03:47.3]} 14. Nf2 {[%clk 0:03:39]} 14...
c6 {[%clk 0:03:43.5]} 15. O-O {[%clk 0:03:34.4]} 15... cxd5 {[%clk 0:03:19.6]}
16. Nxd5 {[%clk 0:03:23.5]} 16... Nxd5 {[%clk 0:03:16.8]} 17. cxd5 {[%clk
0:03:23.4]} 17... Rc8 {[%clk 0:02:57.3]} 18. Nd3 {[%clk 0:03:16.9]} 18... Nxd3
{[%clk 0:02:55]} 19. Bxd3 {[%clk 0:03:16.8]} 19... b5 {[%clk 0:02:19.4]} 20. Qe2
{[%clk 0:03:12.4]} 20... b4 {[%clk 0:02:14.3]} 21. b3 {[%clk 0:03:10.6]} 21...
Qc7 {[%clk 0:01:54.3]} 22. Rfc1 {[%clk 0:03:08.5]} 22... Qb8 {[%clk 0:01:53.2]}
23. Ba6 {[%clk 0:03:05.5]} 23... Rxc1+ {[%clk 0:01:47.9]} 24. Rxc1 {[%clk
0:03:05.4]} 24... Bc8 {[%clk 0:01:42.3]} 25. Bxc8 {[%clk 0:02:41.9]} 25... Rxc8
{[%clk 0:01:42.2]} 26. Rxc8+ {[%clk 0:02:39.6]} 26... Qxc8 {[%clk 0:01:39.6]}
27. Qd2 {[%clk 0:02:38.7]} 27... Kf8 {[%clk 0:01:29.3]} 28. Qc1 {[%clk
0:02:31.7]} 28... Qxc1+ {[%clk 0:01:24.5]} 29. Bxc1 {[%clk 0:02:31.6]} 29... Bf6
{[%clk 0:01:18.9]} 30. Kf2 {[%clk 0:02:27.7]} 30... Bd8 {[%clk 0:01:17.6]} 31.
Ke2 {[%clk 0:02:26.2]} 31... Ke7 {[%clk 0:01:14.8]} 32. Kd3 {[%clk 0:02:25.3]}
32... Kd7 {[%clk 0:01:14.3]} 33. Kc4 {[%clk 0:02:24.1]} 33... Kc7 {[%clk
0:01:13.5]} 34. Be3 {[%clk 0:02:23.2]} 34... Kb7 {[%clk 0:01:08.9]} 35. Kb5
{[%clk 0:02:21.7]} 35... f6 {[%clk 0:01:01.2]} 36. Bf2 {[%clk 0:02:03.1]} 36...
Bc7 {[%clk 0:00:59.2]} 37. Be1 {[%clk 0:02:00.5]} 37... Bd8 {[%clk 0:00:52.7]}
38. Bd2 {[%clk 0:01:59.6]} 38... Bc7 {[%clk 0:00:51.6]} 39. Bc1 {[%clk
0:01:58.4]} 39... Bd8 {[%clk 0:00:50.4]} 40. a3 {[%clk 0:01:56.6]} 40... bxa3
{[%clk 0:00:46.9]} 41. Bxa3 {[%clk 0:01:56.5]} 41... Bc7 {[%clk 0:00:45.1]} 42.
Bc1 {[%clk 0:01:54]} 42... Bb6 {[%clk 0:00:42.2]} 43. Bd2 {[%clk 0:01:52.3]}
43... Bc7 {[%clk 0:00:40.2]} 44. Bxa5 {[%clk 0:01:51]} 44... Bxa5 {[%clk
0:00:39.4]} 45. Kxa5 {[%clk 0:01:50.9]} 45... Kb8 {[%clk 0:00:34.9]} 46. Kb6
{[%clk 0:01:49.5]} 46... Kc8 {[%clk 0:00:34]} 47. Kc6 {[%clk 0:01:48.7]} 47...
Kd8 {[%clk 0:00:32.6]} 48. Kxd6 {[%clk 0:01:47.5]} 1-0